Workbook

Sheet Project Cost Tracker
B2: Hours & Expense Tracking
N3: START DATE: | O3: 2013-09-20
B5: COMPANY NAME
A6: Building Expansion Project | B6: Building Expansion Project
E7: =UPPER(TEXT(E9,"mmm d") & " - " & TEXT(H9,"mmm d")) -> SEP 20 - OCT 11 | J7: =UPPER(TEXT(J9,"mmm d") & " - " & TEXT(M9,"mmm d")) -> OCT 18 - NOV 8
D9: RATE | E9: =ProjectStartDate -> 2013-09-20 | F9: =E9+7 -> 2013-09-27 | G9: =F9+7 -> 2013-10-04 | H9: 2013-10-11 | I9: TOTAL | J9: =H9+7 -> 2013-10-18 | K9: 2013-10-25 | L9: 2013-11-01 | M9: 2013-11-08 | N9: TOTAL | O9: GRAND TOTAL
C10: RESOURCE 1
C11: Initiation / Planning | D11: $50.00 | E11: 45.0 | F11: 32.0 | G11: 20.0 | H11: 45.0 | I11: =SUM('Project Cost Tracker'!$E11:$H11) -> 142.0 | J11: 25.0 | K11: 35.0 | L11: 40.0 | M11: 70.0 | N11: =SUM('Project Cost Tracker'!$J11:$M11) -> 170.0 | O11: =SUM('Project Cost Tracker'!$I11,'Project Cost Tracker'!$N11) -> 312.0
C12: Install / Development / Testing | D12: $45.00 | E12: 20.0 | F12: 35.0 | G12: 50.0 | H12: 43.0 | I12: =SUM('Project Cost Tracker'!$E12:$H12) -> 148.0 | J12: 20.0 | K12: 45.0 | L12: 50.0 | M12: 65.0 | N12: =SUM('Project Cost Tracker'!$J12:$M12) -> 180.0 | O12: =SUM('Project Cost Tracker'!$I12,'Project Cost Tracker'!$N12) -> 328.0
C13: Deployment | D13: $50.00 | E13: 10.0 | F13: 36.0 | G13: 27.0 | H13: 38.0 | I13: =SUM('Project Cost Tracker'!$E13:$H13) -> 111.0 | J13: 0.0 | K13: 18.0 | L13: 20.0 | M13: 30.0 | N13: =SUM('Project Cost Tracker'!$J13:$M13) -> 68.0 | O13: =SUM('Project Cost Tracker'!$I13,'Project Cost Tracker'!$N13) -> 179.0
C14: Operational / Maintenance | D14: $50.00 | E14: 18.0 | F14: 50.0 | G14: 30.0 | H14: 25.0 | I14: =SUM('Project Cost Tracker'!$E14:$H14) -> 123.0 | J14: 30.0 | K14: 25.0 | L14: 18.0 | M14: 15.0 | N14: =SUM('Project Cost Tracker'!$J14:$M14) -> 88.0 | O14: =SUM('Project Cost Tracker'!$I14,'Project Cost Tracker'!$N14) -> 211.0
C15: Total Hours | E15: =SUM(E11:E14) -> 93.0 | F15: =SUM(F11:F14) -> 153.0 | G15: 127.0 | H15: 151.0 | I15: =SUM('Project Cost Tracker'!$E15:$H15) -> 524.0 | J15: =SUM(J11:J14) -> 75.0 | K15: =SUM(K11:K14) -> 123.0 | L15: 128.0 | M15: 180.0 | N15: =SUM('Project Cost Tracker'!$J15:$M15) -> 506.0 | O15: =SUM('Project Cost Tracker'!$I15,'Project Cost Tracker'!$N15) -> 1,030.0
C16: T & L Expenses | I16: =SUM('Project Cost Tracker'!$E16:$H16) -> $0.00 | N16: =SUM('Project Cost Tracker'!$J16:$M16) -> $0.00 | O16: =SUM('Project Cost Tracker'!$I16,'Project Cost Tracker'!$N16) -> $0.00
C17: T & L Expenses - Capitalized | I17: =SUM('Project Cost Tracker'!$E17:$H17) -> $0.00 | N17: =SUM('Project Cost Tracker'!$J17:$M17) -> $0.00 | O17: =SUM('Project Cost Tracker'!$I17,'Project Cost Tracker'!$N17) -> $0.00
C18: RESOURCE 2
C19: Initiation / Planning | D19: $50.00 | E19: 45.0 | F19: 32.0 | G19: 20.0 | H19: 45.0 | I19: =SUM('Project Cost Tracker'!$E19:$H19) -> 142.0 | J19: 25.0 | K19: 35.0 | L19: 40.0 | M19: 70.0 | N19: =SUM('Project Cost Tracker'!$J19:$M19) -> 170.0 | O19: =SUM('Project Cost Tracker'!$I19,'Project Cost Tracker'!$N19) -> 312.0
C20: Install / Development / Testing | D20: $45.00 | E20: 20.0 | F20: 35.0 | G20: 50.0 | H20: 43.0 | I20: =SUM('Project Cost Tracker'!$E20:$H20) -> 148.0 | J20: 20.0 | K20: 45.0 | L20: 50.0 | M20: 65.0 | N20: =SUM('Project Cost Tracker'!$J20:$M20) -> 180.0 | O20: =SUM('Project Cost Tracker'!$I20,'Project Cost Tracker'!$N20) -> 328.0
C21: Deployment | D21: $50.00 | E21: 10.0 | F21: 36.0 | G21: 27.0 | H21: 38.0 | I21: =SUM('Project Cost Tracker'!$E21:$H21) -> 111.0 | J21: 0.0 | K21: 18.0 | L21: 20.0 | M21: 30.0 | N21: =SUM('Project Cost Tracker'!$J21:$M21) -> 68.0 | O21: =SUM('Project Cost Tracker'!$I21,'Project Cost Tracker'!$N21) -> 179.0
C22: Operational / Maintenance | D22: $50.00 | E22: 18.0 | F22: 50.0 | G22: 30.0 | H22: 25.0 | I22: =SUM('Project Cost Tracker'!$E22:$H22) -> 123.0 | J22: 30.0 | K22: 25.0 | L22: 18.0 | M22: 15.0 | N22: =SUM('Project Cost Tracker'!$J22:$M22) -> 88.0 | O22: =SUM('Project Cost Tracker'!$I22,'Project Cost Tracker'!$N22) -> 211.0
C23: Total Hours | E23: =SUM(E19:E22) -> 93.0 | F23: =SUM(F19:F22) -> 153.0 | G23: 127.0 | H23: =SUM(H19:H22) -> 151.0 | I23: =SUM(I19:I22) -> 524.0 | J23: 75.0 | K23: 123.0 | L23: 128.0 | M23: 180.0 | N23: =SUM(N19:N22) -> 506.0 | O23: =SUM('Project Cost Tracker'!$I23,'Project Cost Tracker'!$N23) -> 1,030.0
C24: T & L Expenses | I24: =SUM('Project Cost Tracker'!$E24:$H24) -> $0.00 | N24: =SUM('Project Cost Tracker'!$J24:$M24) -> $0.00 | O24: =SUM('Project Cost Tracker'!$I24,'Project Cost Tracker'!$N24) -> $0.00
C25: T & L Expenses - Capitalized | I25: =SUM('Project Cost Tracker'!$E25:$H25) -> $0.00 | N25: =SUM('Project Cost Tracker'!$J25:$M25) -> $0.00 | O25: =SUM('Project Cost Tracker'!$I25,'Project Cost Tracker'!$N25) -> $0.00
C26: RESOURCE 3
C27: Initiation / Planning | D27: $50.00 | E27: 45.0 | F27: 32.0 | G27: 20.0 | H27: 45.0 | I27: =SUM('Project Cost Tracker'!$E27:$H27) -> 142.0 | J27: 25.0 | K27: 35.0 | L27: 40.0 | M27: 70.0 | N27: =SUM('Project Cost Tracker'!$J27:$M27) -> 170.0 | O27: =SUM('Project Cost Tracker'!$I27,'Project Cost Tracker'!$N27) -> 312.0
C28: Install / Development / Testing | D28: $45.00 | E28: 20.0 | F28: 35.0 | G28: 50.0 | H28: 43.0 | I28: =SUM('Project Cost Tracker'!$E28:$H28) -> 148.0 | J28: 20.0 | K28: 45.0 | L28: 50.0 | M28: 65.0 | N28: =SUM('Project Cost Tracker'!$J28:$M28) -> 180.0 | O28: =SUM('Project Cost Tracker'!$I28,'Project Cost Tracker'!$N28) -> 328.0
C29: Deployment | D29: $50.00 | E29: 10.0 | F29: 36.0 | G29: 27.0 | H29: 38.0 | I29: =SUM('Project Cost Tracker'!$E29:$H29) -> 111.0 | J29: 0.0 | K29: 18.0 | L29: 20.0 | M29: 30.0 | N29: =SUM('Project Cost Tracker'!$J29:$M29) -> 68.0 | O29: =SUM('Project Cost Tracker'!$I29,'Project Cost Tracker'!$N29) -> 179.0
C30: Operational / Maintenance | D30: $50.00 | E30: 18.0 | F30: 50.0 | G30: 30.0 | H30: 25.0 | I30: =SUM('Project Cost Tracker'!$E30:$H30) -> 123.0 | J30: 30.0 | K30: 25.0 | L30: 18.0 | M30: 15.0 | N30: =SUM('Project Cost Tracker'!$J30:$M30) -> 88.0 | O30: =SUM('Project Cost Tracker'!$I30,'Project Cost Tracker'!$N30) -> 211.0
C31: Total Hours | E31: =SUM(E27:E30) -> 93.0 | F31: =SUM(F27:F30) -> 153.0 | G31: =SUM(G27:G30) -> 127.0 | H31: =SUM(H27:H30) -> 151.0 | I31: =SUM('Project Cost Tracker'!$E31:$H31) -> 524.0 | J31: =SUM(J27:J30) -> 75.0 | K31: =SUM(K27:K30) -> 123.0 | L31: =SUM(L27:L30) -> 128.0 | M31: =SUM(M27:M30) -> 180.0 | N31: =SUM(N27:N30) -> 506.0 | O31: =SUM('Project Cost Tracker'!$I31,'Project Cost Tracker'!$N31) -> 1,030.0
C32: T & L Expenses | I32: =SUM('Project Cost Tracker'!$E32:$H32) -> $0.00 | N32: =SUM('Project Cost Tracker'!$J32:$M32) -> $0.00 | O32: =SUM('Project Cost Tracker'!$I32,'Project Cost Tracker'!$N32) -> $0.00
C33: T & L Expenses - Capitalized | I33: =SUM('Project Cost Tracker'!$E33:$H33) -> $0.00 | N33: =SUM('Project Cost Tracker'!$J33:$M33) -> $0.00 | O33: =SUM('Project Cost Tracker'!$I33,'Project Cost Tracker'!$N33) -> $0.00
C34: RESOURCE 4
C35: Initiation / Planning | D35: $50.00 | E35: 45.0 | F35: 32.0 | G35: 20.0 | H35: 45.0 | I35: =SUM('Project Cost Tracker'!$E35:$H35) -> 142.0 | J35: 25.0 | K35: 35.0 | L35: 40.0 | M35: 70.0 | N35: =SUM('Project Cost Tracker'!$J35:$M35) -> 170.0 | O35: =SUM('Project Cost Tracker'!$I35,'Project Cost Tracker'!$N35) -> 312.0
C36: Install / Development / Testing | D36: $45.00 | E36: 20.0 | F36: 35.0 | G36: 50.0 | H36: 43.0 | I36: =SUM('Project Cost Tracker'!$E36:$H36) -> 148.0 | J36: 20.0 | K36: 45.0 | L36: 50.0 | M36: 65.0 | N36: =SUM('Project Cost Tracker'!$J36:$M36) -> 180.0 | O36: =SUM('Project Cost Tracker'!$I36,'Project Cost Tracker'!$N36) -> 328.0
C37: Deployment | D37: $50.00 | E37: 10.0 | F37: 36.0 | G37: 27.0 | H37: 38.0 | I37: =SUM('Project Cost Tracker'!$E37:$H37) -> 111.0 | J37: 0.0 | K37: 18.0 | L37: 20.0 | M37: 30.0 | N37: =SUM('Project Cost Tracker'!$J37:$M37) -> 68.0 | O37: =SUM('Project Cost Tracker'!$I37,'Project Cost Tracker'!$N37) -> 179.0
C38: Operational / Maintenance | D38: $50.00 | E38: 18.0 | F38: 50.0 | G38: 30.0 | H38: 25.0 | I38: =SUM('Project Cost Tracker'!$E38:$H38) -> 123.0 | J38: 30.0 | K38: 25.0 | L38: 18.0 | M38: 15.0 | N38: =SUM('Project Cost Tracker'!$J38:$M38) -> 88.0 | O38: =SUM('Project Cost Tracker'!$I38,'Project Cost Tracker'!$N38) -> 211.0
C39: Total Hours | E39: =SUM(E35:E38) -> 93.0 | F39: =SUM(F35:F38) -> 153.0 | G39: =SUM(G35:G38) -> 127.0 | H39: =SUM(H35:H38) -> 151.0 | I39: =SUM('Project Cost Tracker'!$E39:$H39) -> 524.0 | J39: =SUM(J35:J38) -> 75.0 | K39: =SUM(K35:K38) -> 123.0 | L39: =SUM(L35:L38) -> 128.0 | M39: =SUM(M35:M38) -> 180.0 | N39: =SUM(N35:N38) -> 506.0 | O39: =SUM('Project Cost Tracker'!$I39,'Project Cost Tracker'!$N39) -> 1,030.0
C40: T & L Expenses | I40: =SUM('Project Cost Tracker'!$E40:$H40) -> $0.00 | N40: =SUM('Project Cost Tracker'!$J40:$M40) -> $0.00 | O40: =SUM('Project Cost Tracker'!$I40,'Project Cost Tracker'!$N40) -> $0.00
C41: T & L Expenses - Capitalized | I41: =SUM('Project Cost Tracker'!$E41:$H41) -> $0.00 | N41: =SUM('Project Cost Tracker'!$J41:$M41) -> $0.00 | O41: =SUM('Project Cost Tracker'!$I41,'Project Cost Tracker'!$N41) -> $0.00
C42: VENDOR 1
C43: Initiation / Planning | D43: $50.00 | E43: 45.0 | F43: 32.0 | G43: 20.0 | H43: 45.0 | I43: =SUM('Project Cost Tracker'!$E43:$H43) -> 142.0 | J43: 25.0 | K43: 35.0 | L43: 40.0 | M43: 70.0 | N43: =SUM('Project Cost Tracker'!$J43:$M43) -> 170.0 | O43: =SUM('Project Cost Tracker'!$I43,'Project Cost Tracker'!$N43) -> 312.0
C44: Install / Development / Testing | D44: $45.00 | E44: 20.0 | F44: 35.0 | G44: 50.0 | H44: 43.0 | I44: =SUM('Project Cost Tracker'!$E44:$H44) -> 148.0 | J44: 20.0 | K44: 45.0 | L44: 50.0 | M44: 65.0 | N44: =SUM('Project Cost Tracker'!$J44:$M44) -> 180.0 | O44: =SUM('Project Cost Tracker'!$I44,'Project Cost Tracker'!$N44) -> 328.0
C45: Deployment | D45: $50.00 | E45: 10.0 | F45: 36.0 | G45: 27.0 | H45: 38.0 | I45: =SUM('Project Cost Tracker'!$E45:$H45) -> 111.0 | J45: 0.0 | K45: 18.0 | L45: 20.0 | M45: 30.0 | N45: =SUM('Project Cost Tracker'!$J45:$M45) -> 68.0 | O45: =SUM('Project Cost Tracker'!$I45,'Project Cost Tracker'!$N45) -> 179.0
C46: Operational / Maintenance | D46: $50.00 | E46: 18.0 | F46: 50.0 | G46: 30.0 | H46: 25.0 | I46: =SUM('Project Cost Tracker'!$E46:$H46) -> 123.0 | J46: 30.0 | K46: 25.0 | L46: 18.0 | M46: 15.0 | N46: =SUM('Project Cost Tracker'!$J46:$M46) -> 88.0 | O46: =SUM('Project Cost Tracker'!$I46,'Project Cost Tracker'!$N46) -> 211.0
C47: Total Hours | E47: =SUM(E43:E46) -> 93.0 | F47: =SUM(F43:F46) -> 153.0 | G47: =SUM(G43:G46) -> 127.0 | H47: =SUM(H43:H46) -> 151.0 | I47: =SUM('Project Cost Tracker'!$E47:$H47) -> 524.0 | J47: =SUM(J43:J46) -> 75.0 | K47: =SUM(K43:K46) -> 123.0 | L47: =SUM(L43:L46) -> 128.0 | M47: =SUM(M43:M46) -> 180.0 | N47: =SUM(N43:N46) -> 506.0 | O47: =SUM('Project Cost Tracker'!$I47,'Project Cost Tracker'!$N47) -> 1,030.0
C48: T & L Expenses | I48: =SUM('Project Cost Tracker'!$E48:$H48) -> $0.00 | N48: =SUM('Project Cost Tracker'!$J48:$M48) -> $0.00 | O48: =SUM('Project Cost Tracker'!$I48,'Project Cost Tracker'!$N48) -> $0.00
C49: T & L Expenses - Capitalized | I49: =SUM('Project Cost Tracker'!$E49:$H49) -> $0.00 | N49: =SUM('Project Cost Tracker'!$J49:$M49) -> $0.00 | O49: =SUM('Project Cost Tracker'!$I49,'Project Cost Tracker'!$N49) -> $0.00
C50: VENDOR 2
C51: Initiation / Planning | D51: $50.00 | E51: 45.0 | F51: 32.0 | G51: 20.0 | H51: 45.0 | I51: =SUM('Project Cost Tracker'!$E51:$H51) -> 142.0 | J51: 25.0 | K51: 35.0 | L51: 40.0 | M51: 70.0 | N51: =SUM('Project Cost Tracker'!$J51:$M51) -> 170.0 | O51: =SUM('Project Cost Tracker'!$I51,'Project Cost Tracker'!$N51) -> 312.0
C52: Install / Development / Testing | D52: $45.00 | E52: 20.0 | F52: 35.0 | G52: 50.0 | H52: 43.0 | I52: =SUM('Project Cost Tracker'!$E52:$H52) -> 148.0 | J52: 20.0 | K52: 45.0 | L52: 50.0 | M52: 65.0 | N52: =SUM('Project Cost Tracker'!$J52:$M52) -> 180.0 | O52: =SUM('Project Cost Tracker'!$I52,'Project Cost Tracker'!$N52) -> 328.0
C53: Deployment | D53: $50.00 | E53: 10.0 | F53: 36.0 | G53: 27.0 | H53: 38.0 | I53: =SUM('Project Cost Tracker'!$E53:$H53) -> 111.0 | J53: 0.0 | K53: 18.0 | L53: 20.0 | M53: 30.0 | N53: =SUM('Project Cost Tracker'!$J53:$M53) -> 68.0 | O53: =SUM('Project Cost Tracker'!$I53,'Project Cost Tracker'!$N53) -> 179.0
C54: Operational / Maintenance | D54: $50.00 | E54: 18.0 | F54: 50.0 | G54: 30.0 | H54: 25.0 | I54: =SUM('Project Cost Tracker'!$E54:$H54) -> 123.0 | J54: 30.0 | K54: 25.0 | L54: 18.0 | M54: 15.0 | N54: =SUM('Project Cost Tracker'!$J54:$M54) -> 88.0 | O54: =SUM('Project Cost Tracker'!$I54,'Project Cost Tracker'!$N54) -> 211.0
C55: Total Hours | E55: =SUM(E51:E54) -> 93.0 | F55: =SUM(F51:F54) -> 153.0 | G55: =SUM(G51:G54) -> 127.0 | H55: =SUM(H51:H54) -> 151.0 | I55: =SUM('Project Cost Tracker'!$E55:$H55) -> 524.0 | J55: =SUM(J51:J54) -> 75.0 | K55: =SUM(K51:K54) -> 123.0 | L55: =SUM(L51:L54) -> 128.0 | M55: =SUM(M51:M54) -> 180.0 | N55: =SUM(N51:N54) -> 506.0 | O55: =SUM('Project Cost Tracker'!$I55,'Project Cost Tracker'!$N55) -> 1,030.0
C56: T & L Expenses | I56: =SUM('Project Cost Tracker'!$E56:$H56) -> $0.00 | N56: =SUM('Project Cost Tracker'!$J56:$M56) -> $0.00 | O56: =SUM('Project Cost Tracker'!$I56,'Project Cost Tracker'!$N56) -> $0.00
C57: T & L Expenses - Capitalized | I57: =SUM('Project Cost Tracker'!$E57:$H57) -> $0.00 | N57: =SUM('Project Cost Tracker'!$J57:$M57) -> $0.00 | O57: =SUM('Project Cost Tracker'!$I57,'Project Cost Tracker'!$N57) -> $0.00
C58: VENDOR 3
C59: Initiation / Planning | D59: $50.00 | E59: 45.0 | F59: 32.0 | G59: 20.0 | H59: 45.0 | I59: =SUM('Project Cost Tracker'!$E59:$H59) -> 142.0 | J59: 25.0 | K59: 35.0 | L59: 40.0 | M59: 70.0 | N59: =SUM('Project Cost Tracker'!$J59:$M59) -> 170.0 | O59: =SUM('Project Cost Tracker'!$I59,'Project Cost Tracker'!$N59) -> 312.0
C60: Install / Development / Testing | D60: $45.00 | E60: 20.0 | F60: 35.0 | G60: 50.0 | H60: 43.0 | I60: =SUM('Project Cost Tracker'!$E60:$H60) -> 148.0 | J60: 20.0 | K60: 45.0 | L60: 50.0 | M60: 65.0 | N60: =SUM('Project Cost Tracker'!$J60:$M60) -> 180.0 | O60: =SUM('Project Cost Tracker'!$I60,'Project Cost Tracker'!$N60) -> 328.0
C61: Deployment | D61: $50.00 | E61: 10.0 | F61: 36.0 | G61: 27.0 | H61: 38.0 | I61: =SUM('Project Cost Tracker'!$E61:$H61) -> 111.0 | J61: 0.0 | K61: 18.0 | L61: 20.0 | M61: 30.0 | N61: =SUM('Project Cost Tracker'!$J61:$M61) -> 68.0 | O61: =SUM('Project Cost Tracker'!$I61,'Project Cost Tracker'!$N61) -> 179.0
C62: Operational / Maintenance | D62: $50.00 | E62: 18.0 | F62: 50.0 | G62: 30.0 | H62: 25.0 | I62: =SUM('Project Cost Tracker'!$E62:$H62) -> 123.0 | J62: 30.0 | K62: 25.0 | L62: 18.0 | M62: 15.0 | N62: =SUM('Project Cost Tracker'!$J62:$M62) -> 88.0 | O62: =SUM('Project Cost Tracker'!$I62,'Project Cost Tracker'!$N62) -> 211.0
C63: Total Hours | E63: =SUM(E59:E62) -> 93.0 | F63: =SUM(F59:F62) -> 153.0 | G63: =SUM(G59:G62) -> 127.0 | H63: =SUM(H59:H62) -> 151.0 | I63: =SUM('Project Cost Tracker'!$E63:$H63) -> 524.0 | J63: =SUM(J59:J62) -> 75.0 | K63: =SUM(K59:K62) -> 123.0 | L63: =SUM(L59:L62) -> 128.0 | M63: =SUM(M59:M62) -> 180.0 | N63: =SUM(N59:N62) -> 506.0 | O63: =SUM('Project Cost Tracker'!$I63,'Project Cost Tracker'!$N63) -> 1,030.0
C64: T & L Expenses | I64: =SUM('Project Cost Tracker'!$E64:$H64) -> $0.00 | N64: =SUM('Project Cost Tracker'!$J64:$M64) -> $0.00 | O64: =SUM('Project Cost Tracker'!$I64,'Project Cost Tracker'!$N64) -> $0.00
C65: T & L Expenses - Capitalized | I65: =SUM('Project Cost Tracker'!$E65:$H65) -> $0.00 | N65: =SUM('Project Cost Tracker'!$J65:$M65) -> $0.00 | O65: =SUM('Project Cost Tracker'!$I65,'Project Cost Tracker'!$N65) -> $0.00
C66: VENDOR 4
C67: Initiation / Planning | D67: $50.00 | E67: 45.0 | F67: 32.0 | G67: 20.0 | H67: 45.0 | I67: =SUM('Project Cost Tracker'!$E67:$H67) -> 142.0 | J67: 25.0 | K67: 35.0 | L67: 40.0 | M67: 70.0 | N67: =SUM('Project Cost Tracker'!$J67:$M67) -> 170.0 | O67: =SUM('Project Cost Tracker'!$I67,'Project Cost Tracker'!$N67) -> 312.0
C68: Install / Development / Testing | D68: $45.00 | E68: 20.0 | F68: 35.0 | G68: 50.0 | H68: 43.0 | I68: =SUM('Project Cost Tracker'!$E68:$H68) -> 148.0 | J68: 20.0 | K68: 45.0 | L68: 50.0 | M68: 65.0 | N68: =SUM('Project Cost Tracker'!$J68:$M68) -> 180.0 | O68: =SUM('Project Cost Tracker'!$I68,'Project Cost Tracker'!$N68) -> 328.0
C69: Deployment | D69: $50.00 | E69: 10.0 | F69: 36.0 | G69: 27.0 | H69: 38.0 | I69: =SUM('Project Cost Tracker'!$E69:$H69) -> 111.0 | J69: 0.0 | K69: 18.0 | L69: 20.0 | M69: 30.0 | N69: =SUM('Project Cost Tracker'!$J69:$M69) -> 68.0 | O69: =SUM('Project Cost Tracker'!$I69,'Project Cost Tracker'!$N69) -> 179.0
C70: Operational / Maintenance | D70: $50.00 | E70: 18.0 | F70: 50.0 | G70: 30.0 | H70: 25.0 | I70: =SUM('Project Cost Tracker'!$E70:$H70) -> 123.0 | J70: 30.0 | K70: 25.0 | L70: 18.0 | M70: 15.0 | N70: =SUM('Project Cost Tracker'!$J70:$M70) -> 88.0 | O70: =SUM('Project Cost Tracker'!$I70,'Project Cost Tracker'!$N70) -> 211.0
C71: Total Hours | E71: =SUM(E67:E70) -> 93.0 | F71: =SUM(F67:F70) -> 153.0 | G71: =SUM(G67:G70) -> 127.0 | H71: =SUM(H67:H70) -> 151.0 | I71: =SUM('Project Cost Tracker'!$E71:$H71) -> 524.0 | J71: =SUM(J67:J70) -> 75.0 | K71: =SUM(K67:K70) -> 123.0 | L71: =SUM(L67:L70) -> 128.0 | M71: =SUM(M67:M70) -> 180.0 | N71: =SUM(N67:N70) -> 506.0 | O71: =SUM('Project Cost Tracker'!$I71,'Project Cost Tracker'!$N71) -> 1,030.0
C72: T & L Expenses | I72: =SUM('Project Cost Tracker'!$E72:$H72) -> $0.00 | N72: =SUM('Project Cost Tracker'!$J72:$M72) -> $0.00 | O72: =SUM('Project Cost Tracker'!$I72,'Project Cost Tracker'!$N72) -> $0.00
C73: T & L Expenses - Capitalized | I73: =SUM('Project Cost Tracker'!$E73:$H73) -> $0.00 | N73: =SUM('Project Cost Tracker'!$J73:$M73) -> $0.00 | O73: =SUM('Project Cost Tracker'!$I73,'Project Cost Tracker'!$N73) -> $0.00
C74: RESOURCE SUMMARY
C75: Initiation / Planning | E75: =SUM(E11,E19,E27,E35) -> 180.0 | F75: 128.0 | G75: 80.0 | H75: 180.0 | I75: =SUM(E75:H75) -> 568.0 | J75: =SUM(J11,J19,J27,J35) -> 100.0 | K75: 140.0 | L75: 160.0 | M75: 280.0 | N75: 680.0 | O75: 1,248.0
C76: Install / Development / Testing | E76: 80.0 | F76: 140.0 | G76: 200.0 | H76: 172.0 | I76: =SUM(I12,I20,I28,I36) -> 592.0 | J76: 80.0 | K76: 180.0 | L76: 200.0 | M76: 260.0 | N76: 720.0 | O76: 1,312.0
C77: Deployment | E77: 40.0 | F77: 144.0 | G77: 108.0 | H77: 152.0 | I77: =SUM(I13,I21,I29,I37) -> 444.0 | J77: 0.0 | K77: 72.0 | L77: 80.0 | M77: 120.0 | N77: 272.0 | O77: 716.0
C78: Operational / Maintenance | E78: 72.0 | F78: 200.0 | G78: 120.0 | H78: 100.0 | I78: =SUM(I14,I22,I30,I38) -> 492.0 | J78: =SUM(J14,J22,J30,J38) -> 120.0 | K78: =SUM(K14,K22,K30,K38) -> 100.0 | L78: =SUM(L14,L22,L30,L38) -> 72.0 | M78: =SUM(M14,M22,M30,M38) -> 60.0 | N78: =SUM(N14,N22,N30,N38) -> 352.0 | O78: =SUM(I78,N78) -> 844.0
C79: Resource Grand Total Hours | E79: =SUM(E75:E78) -> 372.0 | F79: =SUM(F75:F78) -> 612.0 | G79: 508.0 | H79: =SUM(H75:H78) -> 604.0 | I79: 2,096.0 | J79: 300.0 | K79: 492.0 | L79: 512.0 | M79: =SUM(M75:M78) -> 720.0 | N79: 2,024.0 | O79: =SUM(I79,N79) -> 4,120.0
C80: T & L Expenses | E80: =SUM(E16,E24,E32,E40) -> $0.00 | F80: $0.00 | G80: $0.00 | H80: $0.00 | I80: $0.00 | J80: $0.00 | K80: $0.00 | L80: $0.00 | M80: $0.00 | N80: $0.00 | O80: $0.00
C81: T & L Expenses - Capitalized | E81: =SUM(E17,E25,E33,E41) -> $0.00 | F81: $0.00 | G81: $0.00 | H81: $0.00 | I81: $0.00 | J81: $0.00 | K81: $0.00 | L81: $0.00 | M81: $0.00 | N81: $0.00 | O81: $0.00
C82: VENDOR SUMMARY
C83: Initiation / Planning | E83: =SUM(E43,E51,E59,E67) -> 180.0 | F83: 128.0 | G83: 80.0 | H83: 180.0 | I83: 568.0 | J83: 100.0 | K83: 140.0 | L83: 160.0 | M83: 280.0 | N83: 680.0 | O83: =SUM(I83,N83) -> 1,248.0
C84: Install / Development / Testing | E84: =SUM(E44,E52,E60,E68) -> 80.0 | F84: 140.0 | G84: 200.0 | H84: 172.0 | I84: 592.0 | J84: 80.0 | K84: 180.0 | L84: 200.0 | M84: 260.0 | N84: 720.0 | O84: =SUM(I84,N84) -> 1,312.0
C85: Deployment | E85: =SUM(E45,E53,E61,E69) -> 40.0 | F85: 144.0 | G85: 108.0 | H85: 152.0 | I85: 444.0 | J85: 0.0 | K85: 72.0 | L85: 80.0 | M85: 120.0 | N85: 272.0 | O85: 716.0
C86: Operational / Maintenance | E86: =SUM(E46,E54,E62,E70) -> 72.0 | F86: 200.0 | G86: 120.0 | H86: 100.0 | I86: 492.0 | J86: 120.0 | K86: 100.0 | L86: 72.0 | M86: 60.0 | N86: 352.0 | O86: 844.0
C87: Vendor Grand Total Hours | E87: =SUM(E83:E86) -> 372.0 | F87: =SUM(F83:F86) -> 612.0 | G87: 508.0 | H87: 604.0 | I87: 2,096.0 | J87: 300.0 | K87: 492.0 | L87: 512.0 | M87: 720.0 | N87: 2,024.0 | O87: 4,120.0
C88: T & L Expenses | E88: =SUM(E48,E56,E64,E72) -> $0.00 | F88: $0.00 | G88: $0.00 | H88: $0.00 | I88: $0.00 | J88: $0.00 | K88: $0.00 | L88: $0.00 | M88: $0.00 | N88: $0.00 | O88: $0.00
C89: T & L Expenses - Capitalized | E89: =SUM(E49,E57,E65,E73) -> $0.00 | F89: $0.00 | G89: $0.00 | H89: $0.00 | I89: $0.00 | J89: $0.00 | K89: $0.00 | L89: $0.00 | M89: $0.00 | N89: $0.00 | O89: $0.00
